bitfinex/quotes_ETHUSD_20250827
["timestamp","ask_amount","ask_price","bid_price","bid_amount"]
[1756260439979,0.34328467,4559.3,4559.0,0.2997]
[1756260440724,0.34328467,4559.3,4559.1,0.4554]
[1756260440935,3.0,4559.8,4559.2,0.7551]
[1756260441142,0.659759,4559.9,4559.3,0.4554]
[1756260441304,0.02741348,4559.8,4558.9,1.7414]
[1756260441697,0.34325233,4560.0,4559.0,0.4554]
[1756260442793,0.34325233,4560.0,4559.9,0.2997]
[1756260443037,0.34325233,4560.0,4559.9,0.7551]
[1756260443739,0.02,4560.8,4559.9,0.7551]
[1756260443894,0.4171,4560.7,4559.9,2.4421]
[1756260444407,0.02,4560.8,4559.9,2.45353057]
[1756260444591,0.02,4560.8,4560.0,0.4554]
[1756260445020,0.02,4560.8,4560.7,0.2997]
[1756260445815,0.02,4560.8,4560.7,0.7551]
[1756260448840,0.02,4560.8,4560.7,2.95917015]
[1756260449001,0.02,4560.8,4560.7,3.94434134]
[1756260449641,0.02,4560.8,4560.7,3.95576563]
[1756260449840,0.02,4560.8,4560.7,3.94434134]
[1756260450254,0.02,4560.8,4560.7,3.95576563]
[1756260450834,0.02,4560.8,4560.7,3.94434134]
[1756260451533,0.02,4560.8,4560.7,3.95576563]
[1756260451937,0.02,4560.8,4560.7,4.61576563]
[1756260452237,0.02,4560.8,4560.7,7.60434134]
[1756260455881,0.02,4560.8,4560.7,8.31934134]
[1756260456782,0.02,4560.8,4560.7,4.60434134]
[1756260456982,0.02,4560.8,4560.7,7.65734134]
[1756260457989,0.02,4560.8,4560.7,8.31734134]
[1756260458777,0.02,4560.8,4560.7,8.31834134]
[1756260459149,0.02,4560.8,4560.7,4.60434134]
[1756260459347,0.02,4560.8,4560.7,8.31834134]
[1756260461551,0.02,4560.8,4560.7,8.31734134]
[1756260463766,0.02,4560.8,4560.7,8.31634134]
[1756260464185,0.02,4560.8,4560.7,4.60434134]
[1756260464397,0.02,4560.8,4560.7,8.31634134]
[1756260464555,0.02,4560.8,4560.7,2.61524586]
[1756260464888,0.02,4560.8,4560.7,6.01424586]
[1756260465495,0.332,4560.8,4560.7,6.01624586]
[1756260466195,0.021,4560.8,4560.7,6.01624586]
[1756260466366,0.333,4560.8,4560.7,0.1096]
[1756260466566,0.333,4560.8,4560.7,3.8226]
[1756260467213,0.333,4560.8,4560.7,0.1096]
[1756260467385,0.333,4560.8,4560.7,3.8226]
[1756260467585,0.7625,4560.8,4560.7,0.1096]
[1756260467809,0.7625,4560.8,4560.7,3.713]
[1756260469626,0.7625,4560.8,4560.5,0.1096]
[1756260469807,0.333,4560.8,4560.6,3.713]
[1756260470111,0.4295,4560.7,4560.5,0.1096]
[1756260470319,0.4295,4560.7,4559.9,1.687]
[1756260470320,0.333,4560.8,4560.6,5.398]
[1756260470473,0.4505,4560.8,4560.7,3.712]
[1756260470673,0.021,4560.8,4560.7,3.712]
[1756260470923,0.333,4560.8,4560.7,3.712]
[1756260471583,0.7625,4560.8,4560.7,3.715]
[1756260472726,0.333,4560.8,4560.7,3.715]
[1756260472921,0.333,4560.8,4560.7,4.028]
[1756260472922,0.021,4560.8,4560.7,4.028]
[1756260473222,0.021,4560.8,4560.7,4.03942429]
[1756260473595,0.021,4560.8,4560.7,6.80461258]
[1756260473790,0.021,4560.8,4560.7,7.36608829]
[1756260479501,0.021,4560.8,4560.7,6.90078829]
[1756260480110,0.021,4560.8,4560.7,3.65708829]
[1756260480323,0.021,4560.8,4560.7,0.1096]
[1756260480324,0.7777,4560.8,4560.7,0.1096]
[1756260480534,0.7777,4560.8,4560.7,3.8216]
[1756260480943,0.7777,4560.8,4560.7,3.713]
[1756260483237,0.7777,4560.8,4560.7,3.712]
[1756260484058,3.7777,4560.8,4560.7,3.711]
[1756260484406,3.7777,4560.8,4560.6,1.686]
[1756260484621,0.4414,4560.7,4560.6,1.686]
[1756260484821,0.4414,4560.7,4560.6,5.399]
[1756260485022,0.7567,4560.7,4560.6,5.399]
[1756260488978,0.7567,4560.7,4560.6,5.396]
[1756260489279,3.7567,4560.7,4560.6,5.396]
[1756260489485,0.7567,4560.7,4560.6,1.686]
[1756260489656,0.7567,4560.7,4560.6,5.396]
[1756260490254,0.7567,4560.7,4560.6,1.686]
[1756260490451,0.7567,4560.7,4560.6,5.396]
[1756260491291,3.0,4560.6,4559.9,1.687]
[1756260491475,5.1927901,4560.4,4560.0,3.712]
[1756260491674,5.1927901,4560.4,4559.9,1.687]
[1756260491675,0.3153,4560.0,4559.9,1.687]
[1756260492186,0.7567,4560.0,4559.9,3.441]
[1756260492396,0.7567,4560.0,4559.9,3.712]
[1756260494864,0.7567,4560.0,4559.8,0.004]
[1756260494865,3.0,4559.9,4559.8,0.004]
[1756260495177,19.65637523,4559.4,4558.2,0.013]
[1756260495384,2.19344152,4559.1,4558.2,0.013]
[1756260495582,0.02741829,4559.0,4558.2,0.013]
[1756260495895,0.7567,4558.9,4558.2,0.013]
[1756260496097,0.7567,4558.9,4558.4,0.691]
[1756260496392,1.0869367,4558.9,4557.8,0.02]
[1756260496594,13.80310419,4558.5,4557.9,1.323]
[1756260496775,0.3153,4558.0,4557.9,1.323]
[1756260497095,0.3153,4558.0,4557.8,0.02]
[1756260497295,0.3153,4558.0,4557.9,3.712]
[1756260498680,0.3153,4558.0,4557.8,0.02]
[1756260499199,0.79906161,4557.9,4557.1,3.586]
[1756260499496,0.3153,4557.2,4557.1,3.586]
[1756260499672,0.3153,4557.2,4557.1,3.712]
[1756260499997,0.7567,4557.2,4557.1,3.712]
[1756260500304,0.3153,4557.2,4557.0,3.713]
[1756260500511,0.3153,4557.2,4556.8,0.02]
[1756260500711,3.0,4557.0,4556.8,0.02]
[1756260500892,3.62133212,4557.0,4556.8,0.02]
[1756260501092,0.3153,4556.9,4556.8,0.02]
[1756260502312,0.78413092,4556.9,4556.1,3.712]
[1756260502485,0.77217827,4556.8,4556.1,3.712]
[1756260502690,0.3153,4556.2,4556.1,3.712]
[1756260502912,0.33077827,4556.8,4556.1,4.4943]
[1756260503298,0.33077827,4556.8,4556.2,0.01147652]
[1756260503723,0.660123,4557.2,4556.7,0.313]
[1756260504047,0.660123,4557.2,4556.8,3.717]
[1756260504502,3.0,4557.7,4557.1,0.313]
[1756260504703,3.0,4557.7,4557.2,3.714]
[1756260506038,3.0,4557.7,4557.3,3.715]
[1756260506446,0.4414,4558.3,4557.3,3.715]
[1756260506614,0.659931,4558.3,4557.6,0.313]
[1756260506935,0.3153,4557.7,4557.3,3.715]
[1756260507237,1.101331,4558.3,4557.4,3.719]
[1756260507735,0.02,4557.8,4557.4,3.719]
[1756260507935,0.3153,4557.5,4556.9,1.688]
[1756260508137,0.02,4557.8,4557.0,4.1657]
[1756260508335,0.02,4557.8,4557.0,3.718]
[1756260508522,0.02,4557.8,4557.1,0.4477]
[1756260509239,0.02,4557.8,4557.7,0.3004]
[1756260509437,0.02,4557.8,4557.7,4.0184]
[1756260509637,0.02,4557.8,4557.7,4.4661]
[1756260510138,0.02,4557.8,4557.7,0.3004]
[1756260510323,0.3234,4557.8,4557.7,3.723]
[1756260510705,0.3234,4557.8,4556.9,1.688]
[1756260510938,0.02742611,4557.7,4557.0,3.723]
[1756260511329,0.02742611,4557.7,4556.9,1.688]
[1756260511330,0.40794872,4557.7,4556.9,1.688]
[1756260511534,0.40794872,4557.7,4557.0,3.723]
[1756260512003,0.38052261,4557.7,4557.0,4.1707]
[1756260513454,0.02,4557.8,4557.6,0.3004]
[1756260513638,0.02,4557.8,4557.7,3.722]
[1756260514363,0.02,4557.8,4557.7,4.0224]
[1756260514572,0.02,4557.8,4557.7,4.4701]
[1756260515764,0.02,4557.8,4557.7,0.3004]
[1756260515948,0.02,4557.8,4557.7,4.0204]
[1756260516868,0.02,4557.8,4557.7,4.87014]
[1756260517538,0.02,4557.8,4557.7,1.15014]
[1756260517739,0.02,4557.8,4557.7,4.88060037]
[1756260517938,0.02,4557.8,4557.7,4.4671]
[1756260518340,0.02,4557.8,4557.7,4.47856037]
[1756260518543,0.02,4557.8,4557.7,6.78224949]
[1756260518737,0.02,4557.8,4557.7,6.77078912]
[1756260518937,0.02,4557.8,4557.7,7.66728564]
[1756260521344,0.021,4557.8,4557.7,8.32728564]
[1756260521548,0.021,4557.8,4557.7,8.32628564]
[1756260522785,0.021,4557.8,4557.7,4.60828564]
[1756260522952,0.021,4557.8,4557.7,8.32628564]
[1756260523793,0.021,4557.8,4557.7,3.94828564]
[1756260523992,0.021,4557.8,4557.7,7.67028564]
[1756260526396,0.021,4557.8,4557.7,8.22068564]
[1756260526549,0.021,4557.8,4557.7,8.33028564]
[1756260526991,0.001,4558.3,4558.2,2.85384844]
[1756260527168,0.02,4558.8,4558.7,2.85360782]
[1756260527367,0.02,4558.8,4558.7,6.99805615]
[1756260527598,0.02,4558.8,4558.7,7.43430782]
[1756260533678,0.02,4558.8,4558.7,7.42930782]
[1756260533878,0.02,4558.8,4558.7,8.43704675]
[1756260534684,1e-08,4558.8,4558.7,13.75204675]
[1756260538110,1e-08,4558.8,4558.7,14.22744675]
[1756260538315,1e-08,4559.8,4559.7,5.16812674]
[1756260538494,1e-08,4559.8,4559.7,10.57512674]
[1756260538807,1e-08,4559.8,4559.7,11.46682674]
[1756260539191,1e-08,4559.8,4559.7,11.55472674]
[1756260539393,1e-08,4559.8,4559.7,12.92951935]
[1756260539708,1e-08,4559.8,4559.7,6.89451935]
[1756260539910,1e-08,4559.8,4559.7,10.14651935]
[1756260540285,1e-08,4559.8,4559.7,10.14751935]
[1756260540995,1e-08,4559.8,4559.7,10.61851935]
[1756260541517,1e-08,4559.8,4559.7,12.46251935]
[1756260542820,0.00100001,4559.8,4559.7,12.46051935]
[1756260543713,0.28710001,4559.8,4559.7,12.14841935]
[1756260544078,0.72550001,4559.8,4559.7,12.14841935]
[1756260544316,0.72550001,4559.8,4559.7,1.7966]
[1756260544518,0.72550001,4559.8,4559.7,5.5176]
[1756260544818,0.72550001,4559.8,4559.7,7.71072674]
[1756260545222,0.72550001,4559.8,4559.7,5.5176]
[1756260545517,0.72550001,4559.8,4559.7,1.7966]
[1756260545919,0.72550001,4559.8,4559.7,5.5176]
[1756260546416,0.72550001,4559.8,4559.7,1.7966]
[1756260546596,0.72550001,4559.8,4559.7,5.5176]
[1756260547204,0.72550001,4559.8,4559.7,1.7966]
[1756260547615,0.72550001,4559.8,4559.7,5.4296]
[1756260547985,0.72550001,4559.8,4559.7,5.32]
[1756260548623,0.72550001,4559.8,4559.7,1.687]
[1756260548915,0.72550001,4559.8,4559.7,5.41]
[1756260550518,0.72550001,4559.8,4559.7,1.687]
[1756260550727,0.72550001,4559.8,4559.7,5.41]
[1756260551517,1.13237258,4559.8,4559.7,5.41]
[1756260551807,0.72550001,4559.8,4559.7,5.41]
[1756260552941,0.72550001,4559.8,4559.7,1.687]
[1756260553127,0.72550001,4559.8,4559.0,1.687]
[1756260553298,6.31256243,4559.4,4559.1,3.573]
[1756260553497,0.2861,4559.2,4559.0,1.687]
[1756260553709,0.2861,4559.2,4559.1,3.72]
[1756260554523,0.7245,4559.2,4559.1,3.72]
[1756260557236,0.2861,4559.2,4559.1,3.72]
[1756260557527,0.00100001,4559.8,4559.1,4.0311]
[1756260557827,0.43940001,4559.8,4559.1,3.72]
[1756260558131,0.2861,4559.2,4559.1,3.72]
[1756260558899,0.2861,4559.2,4559.1,3.718]
[1756260559607,0.7245,4559.2,4559.1,3.717]
[1756260560009,0.7245,4559.2,4559.0,1.687]
[1756260560209,9.75096243,4559.1,4559.0,1.687]
[1756260560450,10.03706243,4559.1,4559.0,5.405]
[1756260566444,10.03706243,4559.1,4559.0,1.687]
[1756260566744,10.03706243,4559.1,4558.6,0.004]
[1756260566745,2.19351159,4558.9,4558.6,0.004]
[1756260566949,2.19356413,4558.8,4558.6,0.004]
[1756260567117,0.2861,4558.7,4558.6,0.004]
[1756260567517,0.2861,4558.7,4557.8,0.02]
[1756260567518,3.66,4558.6,4557.8,0.02]
[1756260567753,3.0,4557.8,4557.6,0.004]
[1756260568248,5.94808912,4557.7,4557.6,0.004]
[1756260568615,3.754,4557.7,4557.6,0.004]
[1756260569034,4.312,4557.7,4557.6,0.004]
[1756260570139,6.50608912,4557.7,4557.6,0.004]
[1756260570335,4.312,4557.7,4557.6,0.004]
[1756260570929,3.754,4557.7,4557.6,0.004]
[1756260572728,3.2914,4557.7,4557.6,0.004]
[1756260573151,3.754,4557.7,4557.6,0.004]
[1756260574847,3.78142611,4557.7,4557.6,0.004]
[1756260575049,3.78142611,4557.7,4557.2,0.004]
[1756260575050,9.31256243,4557.3,4557.2,0.004]
[1756260575520,10.06656243,4557.3,4557.2,0.004]
[1756260576423,9.60396243,4557.3,4557.2,0.004]
[1756260577328,9.31256243,4557.3,4557.2,0.004]
[1756260578247,9.60396243,4557.3,4557.2,0.004]
[1756260583046,10.06656243,4557.3,4557.2,0.004]
[1756260583734,9.60396243,4557.3,4557.2,0.004]
[1756260585643,10.06656243,4557.3,4557.2,0.004]
[1756260586162,9.60396243,4557.3,4557.2,0.004]
[1756260590183,9.31256243,4557.3,4557.2,0.7656]
[1756260590783,9.31256243,4557.3,4557.2,0.3016]
[1756260592384,9.31256243,4557.3,4557.2,0.7656]
[1756260592878,9.31256243,4557.3,4557.2,0.3016]
[1756260593690,0.34342478,4557.4,4557.2,0.3016]
[1756260593860,0.001,4557.8,4557.2,0.77706686]
[1756260594060,0.001,4557.8,4557.3,5.403]
[1756260594263,0.001,4557.8,4557.3,5.867]
[1756260594572,0.001,4557.8,4557.7,0.2976]
[1756260594959,0.001,4557.8,4557.7,0.7616]
[1756260598716,0.001,4557.8,4557.7,0.8712]
[1756260600794,0.001,4557.8,4557.2,2.19831117]
[1756260600795,0.2929,4557.8,4557.2,0.004]
[1756260600999,3.0,4557.3,4557.2,0.004]
[1756260601521,3.2919,4557.3,4557.2,0.004]
[1756260602639,6.31256243,4557.4,4557.2,0.004]
[1756260602640,0.088005,4557.7,4557.2,0.2971]
[1756260602913,3.34442207,4557.8,4557.2,0.2971]
[1756260603294,3.34442207,4557.8,4557.3,0.4447]
[1756260603491,3.34442207,4557.8,4557.7,0.2931]
[1756260603812,3.34442207,4557.8,4557.7,0.7378]
[1756260603813,0.001,4557.8,4557.7,0.7378]
[1756260604115,0.001,4557.8,4557.7,0.2931]
[1756260604485,0.2929,4557.8,4557.3,0.1096]
[1756260604724,6.31256243,4557.4,4557.2,3.551]
[1756260604931,3.7235,4557.3,4557.2,0.004]
[1756260605382,3.0,4557.3,4557.2,0.2971]
[1756260605582,3.001,4557.8,4557.2,0.7418]
[1756260605801,3.2919,4557.3,4557.2,0.004]
[1756260606211,3.7235,4557.3,4557.2,0.004]
[1756260606415,7.46492852,4557.3,4557.1,0.004]
[1756260606603,0.3302367,4557.2,4557.1,0.004]
[1756260606784,0.7618367,4557.2,4557.1,0.004]
[1756260606990,1.0537367,4557.2,4557.1,0.004]
[1756260607713,4.0537367,4557.2,4557.1,0.004]
[1756260609808,4.1417457,4557.2,4557.1,0.004]
[1756260611229,3.811509,4557.2,4557.1,0.004]
[1756260611930,3.7235,4557.2,4557.1,0.004]
[1756260612299,0.7235,4557.2,4556.8,0.02]
[1756260612532,6.31256243,4556.9,4556.8,0.02]
[1756260612954,6.60446243,4556.9,4556.8,0.02]
[1756260613102,6.31256243,4556.9,4556.8,0.3131]
[1756260613303,6.31256243,4556.9,4556.8,0.02]
[1756260613504,6.60446243,4556.9,4556.8,0.02]
[1756260613733,6.31256243,4556.9,4556.8,0.3131]
[1756260614630,3.0,4557.3,4556.8,0.7578]
[1756260614801,3.6803009,4557.3,4556.8,0.7578]
[1756260615136,3.0,4557.3,4556.9,0.4447]
[1756260615347,3.0,4557.3,4557.2,0.2931]
[1756260616933,0.001,4557.8,4557.2,0.7378]
[1756260617232,3.001,4557.8,4557.3,0.45616375]
[1756260617432,0.001,4557.8,4557.7,0.2931]
[1756260617607,0.001,4557.8,4557.7,0.7378]
[1756260617796,3.001,4557.8,4557.7,0.7378]
[1756260618428,0.001,4557.8,4557.7,0.7378]
[1756260623740,0.001,4557.8,4557.7,2.78910037]
[1756260623946,0.001,4557.8,4557.7,2.43726037]
[1756260624145,0.001,4557.8,4557.7,4.63134949]
[1756260624308,0.001,4557.8,4557.7,4.61988912]
[1756260626527,0.001,4557.8,4557.7,8.33388912]
[1756260627312,0.001,4557.8,4557.7,4.61988912]
[1756260627534,0.001,4557.8,4557.7,9.39765618]
[1756260627736,0.001,4557.8,4557.7,10.05765618]
[1756260627947,0.001,4557.8,4557.7,10.16725618]
[1756260633847,0.001,4558.3,4558.2,2.85384844]
[1756260634152,0.001,4558.3,4558.2,6.97328763]
[1756260634354,0.001,4558.3,4558.2,7.72613328]
[1756260634563,0.001,4558.3,4558.2,7.81406828]
[1756260635627,0.001,4558.3,4558.2,10.12906828]
[1756260635821,0.001,4558.3,4558.2,13.12906828]
[1756260644763,0.001,4558.8,4558.7,2.85360782]
[1756260644967,0.001,4558.8,4558.7,8.26405615]
[1756260645145,0.001,4558.8,4558.7,9.01690782]
[1756260645342,1e-08,4558.8,4558.7,14.33190782]
[1756260645667,1e-08,4558.8,4558.7,16.78107052]
[1756260646642,1e-08,4558.8,4558.7,13.06907052]
[1756260646831,1e-08,4558.8,4558.7,15.57895152]
[1756260647328,1e-08,4558.8,4558.7,12.57895152]
[1756260647534,1e-08,4558.8,4558.7,13.23895152]
[1756260648334,1e-08,4558.8,4558.7,12.92885152]
[1756260650280,1e-08,4558.8,4558.7,13.23895152]
[1756260650776,1e-08,4558.8,4558.7,13.69315152]
[1756260651451,1e-08,4558.8,4558.7,9.98115152]
[1756260651642,1e-08,4558.8,4558.7,10.98630782]
[1756260653778,1e-08,4558.8,4558.7,7.27530782]
[1756260653979,1e-08,4558.8,4558.7,10.98630782]
[1756260654443,1e-08,4558.8,4558.7,14.44050782]
[1756260654845,0.001,4559.3,4559.2,5.16836725]
[1756260655071,0.001,4559.3,4559.2,12.61554804]
[1756260655241,0.00100001,4559.8,4559.7,2.85312674]
[1756260655436,0.00100001,4559.8,4559.7,13.56612674]
[1756260655639,0.00100001,4559.8,4559.7,10.27482674]
[1756260655877,0.00100001,4559.8,4559.7,13.98582674]
[1756260656076,0.00100001,4559.8,4559.7,16.07632954]
[1756260657374,0.00100001,4559.8,4559.7,12.36532954]
[1756260657556,0.00100001,4559.8,4559.7,16.07632954]
[1756260658384,0.30030001,4559.8,4559.7,15.76622954]
[1756260658855,0.30030001,4559.8,4559.7,13.61273238]
[1756260659043,0.30030001,4559.8,4559.7,13.14013238]
[1756260659249,0.30030001,4559.8,4559.7,1.7966]
[1756260659451,0.77080001,4559.8,4559.7,5.5066]
[1756260659646,0.77080001,4559.8,4559.7,1.7966]
[1756260659961,0.77080001,4559.8,4559.7,7.69972674]
[1756260660155,0.77080001,4559.8,4559.7,5.5066]
[1756260660557,0.77080001,4559.8,4559.7,7.69972674]
[1756260660965,0.77080001,4559.8,4559.7,5.5066]
[1756260663265,0.77080001,4559.8,4559.7,7.69972674]
[1756260664296,0.77080001,4559.8,4559.7,5.5066]
[1756260664796,0.30030001,4559.8,4559.7,7.69972674]
[1756260665461,0.00100001,4559.8,4559.7,9.0056195]
[1756260665795,0.00100001,4559.8,4559.7,10.0935195]
[1756260666990,0.00100001,4559.8,4559.7,13.0935195]
[1756260667216,0.00100001,4559.8,4559.7,15.4085195]
[1756260670294,0.00100001,4559.8,4559.7,15.4964225]
[1756260673317,0.00100001,4559.8,4559.7,15.4954225]
[1756260673619,0.001,4560.3,4560.2,2.85288627]
[1756260673826,0.001,4560.3,4560.2,6.56188627]
[1756260673988,0.001,4560.3,4560.2,6.98808627]
[1756260674190,0.001,4560.3,4560.2,7.50388927]
[1756260676010,0.001,4560.3,4560.2,7.07598927]
[1756260676193,0.001,4560.3,4560.2,8.27717431]
[1756260679028,1e-08,4560.3,4560.2,14.02007431]
[1756260679322,1e-08,4560.3,4560.2,13.59217431]
[1756260680214,1e-08,4560.3,4560.2,14.02007431]
[1756260682419,1e-08,4560.3,4560.2,10.31107431]
[1756260682619,1e-08,4560.3,4560.2,10.96057431]
[1756260682620,0.29930001,4560.3,4560.2,10.96057431]
[1756260683318,0.29930001,4560.3,4560.2,10.95957431]
[1756260684330,0.29930001,4560.3,4560.2,3.59157431]
[1756260684628,0.76980001,4560.3,4560.2,6.01048627]
[1756260685531,0.76980001,4560.3,4560.2,6.67048627]
[1756260685532,0.29930001,4560.3,4560.2,6.67048627]
[1756260685695,1e-08,4560.3,4560.2,6.98708627]
[1756260685891,1e-08,4560.3,4560.2,8.61154101]
[1756260686428,0.76980001,4560.3,4560.2,4.15904101]
[1756260686733,0.76980001,4560.3,4560.2,6.01048627]
[1756260693401,0.76980001,4560.3,4560.2,3.8176]
[1756260695142,0.76980001,4560.3,4560.2,3.708]
[1756260695656,0.76980001,4560.3,4560.0,0.1096]
[1756260695936,1.14678001,4560.3,4560.1,3.708]
[1756260696135,0.67628001,4560.3,4560.1,3.708]
[1756260696437,0.4335,4560.2,4560.1,3.708]
[1756260696634,0.7291,4560.2,4560.1,3.708]
[1756260696834,0.2956,4560.2,4560.1,3.708]
[1756260697040,1e-08,4560.3,4560.2,2.19288627]
[1756260697209,0.7291,4560.2,4560.1,0.1096]
[1756260697410,0.7291,4560.2,4560.1,6.01053436]
[1756260697623,0.7291,4560.2,4560.1,6.00953436]
[1756260698018,0.2956,4560.2,4560.1,6.00953436]
[1756260698241,1e-08,4560.3,4560.2,2.19288627]
[1756260698708,1e-08,4560.3,4560.2,2.51181657]
[1756260700250,1e-08,4560.3,4560.2,2.95741657]
[1756260700544,1e-08,4560.3,4560.2,2.51181657]
[1756260701038,1e-08,4560.3,4560.2,2.50038627]
[1756260701240,1e-08,4560.3,4560.2,3.47800389]
[1756260701439,0.29560001,4560.3,4560.2,2.19288627]
[1756260701909,0.29560001,4560.3,4560.1,6.00953022]
[1756260702117,0.4335,4560.2,4560.1,0.1096]
[1756260702341,0.4335,4560.2,4560.1,3.8166]
[1756260702545,0.7291,4560.2,4560.1,3.8166]
[1756260703134,0.2956,4560.2,4560.1,3.8166]
[1756260703637,0.2956,4560.2,4560.1,6.00953436]
[1756260704345,1e-08,4560.3,4560.2,2.19288627]
[1756260704564,1e-08,4560.3,4560.2,3.29848627]
[1756260704771,1e-08,4560.3,4560.2,3.60598627]
[1756260706239,1e-08,4560.3,4560.2,3.69389427]
[1756260707248,1e-08,4560.3,4560.2,3.70532457]
[1756260707428,1e-08,4560.3,4560.2,4.75927587]
[1756260707628,1e-08,4560.3,4560.2,4.74784557]
[1756260707824,1e-08,4560.3,4560.2,3.33474557]
[1756260708025,0.72910001,4560.3,4560.2,5.89988627]
[1756260710360,0.29560001,4560.3,4560.2,3.707]
[1756260710545,0.72910001,4560.3,4560.2,3.707]
[1756260710725,0.72910001,4560.3,4560.2,5.89988627]
[1756260710927,1e-08,4560.3,4560.2,6.66113226]
[1756260711126,1e-08,4560.3,4560.2,6.35363226]
[1756260711560,0.29560001,4560.3,4560.2,6.35363226]
[1756260711762,0.29560001,4560.3,4560.2,5.89988627]
[1756260712760,1e-08,4560.3,4560.2,6.20738627]
[1756260715235,1e-08,4560.3,4560.2,2.50038627]
[1756260715469,1e-08,4560.3,4560.2,6.20738627]
[1756260716668,1e-08,4560.3,4560.2,7.0587819]
[1756260717990,0.29560001,4560.3,4560.2,6.7512819]
[1756260718742,0.29560001,4560.3,4560.1,2.30651511]
[1756260718941,0.74170001,4560.3,4560.2,3.707]
[1756260719838,0.74170001,4560.3,4560.1,2.30651511]
[1756260720076,0.74170001,4560.3,4560.2,3.707]
[1756260720276,0.74170001,4560.3,4560.2,2.19288627]
[1756260720576,0.74170001,4560.3,4560.1,2.30652611]
[1756260720790,0.74170001,4560.3,4560.2,3.706]
[1756260721148,0.74170001,4560.3,4560.2,6.706]
[1756260721505,0.74170001,4560.3,4560.2,3.0]
[1756260721643,0.74170001,4560.3,4560.2,6.706]
[1756260723872,0.29560001,4560.3,4560.2,6.706]
[1756260724509,0.74170001,4560.3,4560.2,6.706]
[1756260725104,0.29560001,4560.3,4560.2,3.706]
[1756260725666,0.74170001,4560.3,4560.2,3.706]
[1756260726068,0.29560001,4560.3,4560.2,3.706]
[1756260726371,1e-08,4560.3,4560.2,3.7174303]
[1756260726876,0.28640001,4560.3,4560.2,3.7174303]
[1756260727776,0.28640001,4560.3,4560.2,5.14449648]
[1756260727777,1e-08,4560.3,4560.2,5.14449648]
[1756260728083,1e-08,4560.3,4560.2,7.33738275]
[1756260728285,1e-08,4560.3,4560.2,6.61088275]
[1756260728713,1e-08,4560.3,4560.2,7.33738275]
[1756260728864,0.73250001,4560.3,4560.2,1.687]
[1756260729065,0.73250001,4560.3,4560.2,5.393]
[1756260729289,0.75991048,4560.3,4560.2,5.393]
[1756260730115,0.75991048,4560.3,4560.1,0.004]
[1756260730116,5.95274867,4560.3,4560.1,0.004]
[1756260730411,2.52312297,4560.2,4560.1,1.809]
[1756260730719,2.96922297,4560.2,4560.1,3.301]
[1756260730866,3.25562297,4560.2,4560.1,3.301]
[1756260731071,1.0627367,4560.2,4560.0,3.706]
[1756260731290,9.7860741,4560.1,4560.0,3.706]
[1756260731497,10.04506243,4560.1,4560.0,3.706]
[1756260731695,12.23799679,4560.1,4560.0,3.706]
[1756260732111,10.04506243,4560.1,4560.0,3.706]
[1756260732282,2.19298672,4560.0,4559.8,0.004]
[1756260732488,3.0,4559.9,4559.8,0.004]
[1756260732692,3.7325,4559.9,4559.8,2.275]
[1756260733386,0.2864,4559.9,4559.8,2.275]
[1756260734615,0.7325,4559.9,4559.8,2.275]
[1756260736020,0.7325,4559.9,4559.8,3.71]
[1756260737081,0.2864,4559.9,4559.8,3.71]
[1756260738697,0.31381288,4559.9,4559.7,0.004]
[1756260738897,2.19307864,4559.8,4559.7,0.004]
[1756260739109,5.52331534,4559.8,4559.7,0.004]
[1756260739310,6.34377534,4559.8,4559.7,0.004]
[1756260739690,6.68707461,4559.8,4559.7,0.004]
[1756260740501,2.19317483,4559.6,4559.3,0.004]
[1756260740758,2.19331914,4559.3,4559.1,0.004]
[1756260740895,5.50713562,4559.3,4559.1,0.004]
[1756260741229,2.19343773,4559.1,4558.6,0.004]
[1756260741427,11.50617025,4558.7,4558.6,0.004]
[1756260741592,11.79257025,4558.7,4558.6,0.004]
[1756260741793,12.23867025,4558.7,4558.6,0.004]
[1756260742221,12.89852525,4558.7,4558.6,0.004]
[1756260743832,12.89852525,4558.7,4558.6,0.004]
[1756260743999,2.19380032,4558.3,4558.2,0.004]
[1756260744410,5.92630032,4558.3,4558.2,0.004]
[1756260744732,6.58622032,4558.3,4558.2,0.004]
[1756260746294,3.94632,4558.3,4558.2,0.004]
[1756260746497,3.94632,4558.3,4558.2,3.711]
[1756260746894,3.65992,4558.3,4558.2,3.711]
[1756260747444,3.65992,4558.3,4558.2,0.004]
[1756260747631,3.65992,4558.3,4558.2,3.711]
[1756260747632,6.76573776,4558.3,4558.2,3.711]
[1756260747826,6.14012032,4558.3,4558.2,3.711]
[1756260748145,3.94632,4558.3,4558.2,3.711]
[1756260748709,6.14012032,4558.3,4558.2,3.711]
[1756260749517,6.59852032,4558.3,4558.2,3.711]
[1756260750722,6.59852032,4558.3,4558.2,0.004]
[1756260750927,6.59852032,4558.3,4558.2,3.711]
[1756260751234,6.59852032,4558.3,4557.8,1.707]
[1756260751235,2.19399284,4557.9,4557.8,1.707]
[1756260751435,5.19404098,4557.8,4557.7,0.004]
[1756260751957,5.96274098,4557.8,4557.7,0.004]
[1756260754820,5.50434098,4557.8,4557.7,0.004]
[1756260755016,5.19404098,4557.8,4557.7,0.004]
[1756260755224,5.8187962,4557.8,4557.7,0.004]
[1756260756757,3.62475522,4557.8,4557.7,0.2996]
[1756260757064,6.31256243,4558.5,4557.7,0.7713]